[Event "Saint Louis Rapid 2020"]
[Site "Saint Louis"]
[Date "2020.09.17"]
[Round "7"]
[White "Harikrishna, Pentala"]
[Black "Xiong, Jeffery"]
[Result "1-0"]
[ECO "B06"]
[WhiteElo "2732"]
[BlackElo "2709"]
[Annotator "ChessBase"]
[PlyCount "131"]
[EventDate "2020.09.15"]
[EventType "rapid"]
[EventCountry "USA"]
[TimeControl "1500+5"]

1. e4 {[%emt 0:00:05]} g6 {[%emt 0:00:05]} 2. d4 {[%emt 0:00:03]} Bg7 {[%emt 0:00:01]} 3. Be3 {[%emt 0:00:02]} d6 {[%emt 0:00:03]} 4. Nc3 {[%emt 0:00:07]} a6 {[%emt 0:00:01]} 5. Qd2 {[%emt 0:00:03]} b5 {[%emt 0:00:03]} 6. h4 {[%emt 0:00:05]} h5 {[%emt 0:00:01]} 7. O-O-O {[%emt 0:00:07]} Bb7 {[%emt 0:00:02]} 8. f3 {[%emt 0:00:22]} Nd7 {[%emt 0:00:01]} 9. Nh3 {[%emt 0:00:08]} Ngf6 {[%emt 0:00:02]} 10. Ng5 {[%emt 0:00:13]} e6 {[%emt 0:00:02]} 11. Kb1 {[%emt 0:02:50]} Qe7 {[%emt 0:00:03]} 12. Qf2 {[%emt 0:00:52]} Nb6 {[%emt 0:01:45]} 13. Bd3 {[%emt 0:00:35]} Nfd7 {[%emt 0:03:49]} 14. Qg3 {[%emt 0:02:45]} b4 {[%emt 0:04:53]} 15. Ne2 {[%emt 0:00:18]} c5 {[%emt 0:00:03]} 16. e5 {[%emt 0:00:54]} dxe5 {[%emt 0:02:47]} 17. dxc5 {[%emt 0:02:36]} Nd5 {[%emt 0:00:03]} 18. Bf2 {[%emt 0:01:40]} O-O {[%emt 0:00:33]} 19. Ne4 {[%emt 0:00:03]} Bc6 {[%emt 0:01:32]} 20. Qg5 {[%emt 0:00:13]} Rfd8 {[%emt 0:00:56]} 21. Qxe7 {[%emt 0:03:46]} Nxe7 {[%emt 0:00:00]} 22. Nd6 {[%emt 0:00:02]} Bf8 {[%emt 0:00:20]} 23. Ng3 {[%emt 0:00:21]} Nc8 {[%emt 0:04:02]} 24. Be4 {[%emt 0:01:40]} Nb8 {[%emt 0:00:02]} 25. Nc4 {[%emt 0:00:27]} Bd5 {[%emt 0:02:15]} 26. Nxe5 {[%emt 0:01:50]} Ne7 {[%emt 0:00:01]} 27. Nc4 {[%emt 0:00:47]} Nd7 {[%emt 0:00:08]} 28. Nd6 {[%emt 0:01:01]} f5 {[%emt 0:00:36]} 29. Bxd5 {[%emt 0:00:47]} Nxd5 {[%emt 0:00:00]} 30. Nb7 {[%emt 0:00:01]} Rdc8 {[%emt 0:00:01]} 31. Rhe1 {[%emt 0:00:07]} Nxc5 {[%emt 0:01:17]} 32. Nxc5 {[%emt 0:00:48]} Bxc5 {[%emt 0:00:00]} 33. Bxc5 {[%emt 0:00:01]} Rxc5 {[%emt 0:00:00]} 34. Rxe6 {[%emt 0:00:01]} Nf4 {[%emt 0:00:00]} 35. Red6 {[%emt 0:00:36]} Kg7 {[%emt 0:00:49]} 36. b3 {[%emt 0:00:29]} Re8 {[%emt 0:00:42]} 37. Rxa6 {[%emt 0:00:22]} Nxg2 {[%emt 0:00:05]} 38. Nxh5+ {[%emt 0:00:09]} Kh6 {[%emt 0:00:17]} 39. Rg1 {[%emt 0:00:20]} Re1+ {[%emt 0:00:49]} 40. Rxe1 {[%emt 0:00:02]} Nxe1 {[%emt 0:00:00]} 41. Nf4 {[%emt 0:00:03]} Nxc2 {[%emt 0:00:02]} 42. Rxg6+ {[%emt 0:00:34]} Kh7 {[%emt 0:00:00]} 43. Rg2 {[%emt 0:00:05]} Nd4 {[%emt 0:00:01]} 44. Nd3 {[%emt 0:00:07]} Rc3 {[%emt 0:00:01]} 45. Nxb4 {[%emt 0:00:01]} Rxf3 {[%emt 0:00:00]} 46. Nd5 {[%emt 0:00:03]} f4 {[%emt 0:00:04]} 47. h5 {[%emt 0:00:05]} Kh6 {[%emt 0:00:05]} 48. Rg4 {[%emt 0:00:14]} Ne2 {[%emt 0:00:05]} 49. Nf6 {[%emt 0:00:02]} Rg3 {[%emt 0:00:00]} 50. Kc2 {[%emt 0:00:04]} Rxg4 {[%emt 0:00:22]} 51. Nxg4+ {[%emt 0:00:01]} Kxh5 {[%emt 0:00:00]} 52. Ne5 {[%emt 0:00:02]} Kg5 {[%emt 0:00:02]} 53. Kd2 {[%emt 0:00:10]} Nd4 {[%emt 0:00:01]} 54. Kd3 {[%emt 0:00:01]} Ne6 {[%emt 0:00:01]} 55. b4 {[%emt 0:00:03]} Kf5 {[%emt 0:00:01]} 56. Nf3 {[%emt 0:00:01]} Kg4 {[%emt 0:00:02]} 57. Ke4 {[%emt 0:00:10]} Kg3 {[%emt 0:00:01]} 58. a4 {[%emt 0:00:06]} Nc7 {[%emt 0:00:00]} 59. Nd4 {[%emt 0:00:05]} Na6 {[%emt 0:00:02]} 60. Ne2+ {[%emt 0:00:09]} Kg4 {[%emt 0:00:05]} 61. Nxf4 {[%emt 0:00:01]} Nxb4 {[%emt 0:00:00]} 62. Nd3 {[%emt 0:00:01]} Na6 {[%emt 0:00:09]} 63. a5 {[%emt 0:00:06]} Kg5 {[%emt 0:00:00]} 64. Ke5 {[%emt 0:00:02]} Kg6 {[%emt 0:00:08]} 65. Kd6 {[%emt 0:00:05]} Kf6 {[%emt 0:00:04]} 66. Kc6 {[%emt 0:00:01]} 1-0

[Event "Saint Louis Rapid 2020"]
[Site "Saint Louis"]
[Date "2020.09.17"]
[Round "8"]
[White "Nakamura, Hikaru"]
[Black "Harikrishna, Pentala"]
[Result "1/2-1/2"]
[ECO "B12"]
[WhiteElo "2736"]
[BlackElo "2732"]
[Annotator "ChessBase"]
[PlyCount "111"]
[EventDate "2020.09.15"]
[EventType "rapid"]
[EventCountry "USA"]
[TimeControl "1500+5"]

1. e4 {[%emt 0:00:05]} c6 {[%emt 0:00:05]} 2. d4 {[%emt 0:00:02]} d5 {[%emt 0:00:01]} 3. e5 {[%emt 0:00:01]} Bf5 {[%emt 0:00:02]} 4. h4 {[%emt 0:00:00]} h5 {[%emt 0:00:02]} 5. Bd3 {[%emt 0:00:02]} Bxd3 {[%emt 0:00:23]} 6. Qxd3 {[%emt 0:00:02]} Qa5+ {[%emt 0:00:01]} 7. Nd2 {[%emt 0:00:02]} e6 {[%emt 0:00:08]} 8. Ne2 {[%emt 0:00:02]} Qa6 {[%emt 0:00:34]} 9. c4 {[%emt 0:00:38]} Nh6 {[%emt 0:00:42]} 10. Ng3 {[%emt 0:00:28]} c5 {[%emt 0:00:24]} 11. dxc5 {[%emt 0:02:52]} Nc6 {[%emt 0:00:32]} 12. b3 {[%emt 0:00:05]} Ng4 {[%emt 0:00:17]} 13. Bb2 {[%emt 0:00:24]} Bxc5 {[%emt 0:01:27]} 14. O-O {[%emt 0:00:02]} Ncxe5 {[%emt 0:02:21]} 15. Qe2 {[%emt 0:00:35]} Ng6 {[%emt 0:02:12]} 16. cxd5 {[%emt 0:06:00]} Qxe2 {[%emt 0:01:13]} 17. Nxe2 {[%emt 0:00:00]} exd5 {[%emt 0:01:05]} 18. Bxg7 {[%emt 0:02:11]} Rg8 {[%emt 0:00:05]} 19. Bd4 {[%emt 0:01:06]} Bxd4 {[%emt 0:00:23]} 20. Nxd4 {[%emt 0:00:00]} Nxh4 {[%emt 0:00:01]} 21. Rac1 {[%emt 0:00:57]} Kd7 {[%emt 0:02:03]} 22. Rfd1 {[%emt 0:00:06]} Nf6 {[%emt 0:01:42]} 23. g3 {[%emt 0:00:16]} Ng6 {[%emt 0:00:05]} 24. Rc3 {[%emt 0:00:20]} Ne5 {[%emt 0:00:40]} 25. N4f3 {[%emt 0:01:14]} Neg4 {[%emt 0:00:29]} 26. Rdc1 {[%emt 0:00:47]} Rac8 {[%emt 0:00:36]} 27. Rxc8 {[%emt 0:00:03]} Rxc8 {[%emt 0:00:39]} 28. Rxc8 {[%emt 0:00:01]} Kxc8 {[%emt 0:00:00]} 29. Ng5 {[%emt 0:00:00]} Nh6 {[%emt 0:00:01]} 30. Kg2 {[%emt 0:00:12]} Kd7 {[%emt 0:00:06]} 31. Kf3 {[%emt 0:00:04]} Nfg4 {[%emt 0:00:45]} 32. Ke2 {[%emt 0:00:09]} Kd6 {[%emt 0:00:25]} 33. Ndf3 {[%emt 0:00:22]} Ne5 {[%emt 0:00:40]} 34. Nh4 {[%emt 0:00:08]} Kc5 {[%emt 0:00:22]} 35. a3 {[%emt 0:00:53]} a5 {[%emt 0:00:42]} 36. Nh3 {[%emt 0:00:55]} Kd4 {[%emt 0:00:40]} 37. Kd2 {[%emt 0:00:18]} a4 {[%emt 0:00:17]} 38. bxa4 {[%emt 0:01:44]} Nc4+ {[%emt 0:00:03]} 39. Kc2 {[%emt 0:00:00]} Nxa3+ {[%emt 0:00:13]} 40. Kb3 {[%emt 0:00:02]} Nc4 {[%emt 0:00:01]} 41. Nf4 {[%emt 0:00:14]} Ng4 {[%emt 0:00:41]} 42. Nf3+ {[%emt 0:01:18]} Kc5 {[%emt 0:00:09]} 43. Nd3+ {[%emt 0:00:48]} Kd6 {[%emt 0:00:02]} 44. Ng5 {[%emt 0:00:45]} f6 {[%emt 0:00:51]} 45. Nh3 {[%emt 0:00:02]} f5 {[%emt 0:00:19]} 46. Nhf4 {[%emt 0:00:13]} Nce5 {[%emt 0:00:32]} 47. Kc3 {[%emt 0:00:51]} Nxd3 {[%emt 0:01:10]} 48. Nxd3 {[%emt 0:00:00]} Ne5 {[%emt 0:00:03]} 49. Nf4 {[%emt 0:00:03]} Ng4 {[%emt 0:00:15]} 50. Nd3 {[%emt 0:00:02]} Nf6 {[%emt 0:00:52]} 51. a5 {[%emt 0:00:30]} Ne4+ {[%emt 0:00:19]} 52. Kb4 {[%emt 0:00:01]} Kc6 {[%emt 0:00:09]} 53. Ne5+ {[%emt 0:00:01]} Kd6 {[%emt 0:00:22]} 54. Nd3 {[%emt 0:00:00]} Kc6 {[%emt 0:00:13]} 55. Ne5+ {[%emt 0:00:02]} Kd6 {[%emt 0:00:01]} 56. Nd3 {[%emt 0:00:00]} 1/2-1/2

[Event "Saint Louis Rapid 2020"]
[Site "Saint Louis"]
[Date "2020.09.17"]
[Round "9"]
[White "Xiong, Jeffery"]
[Black "Nakamura, Hikaru"]
[Result "1/2-1/2"]
[ECO "E32"]
[WhiteElo "2709"]
[BlackElo "2736"]
[Annotator "ChessBase"]
[PlyCount "59"]
[EventDate "2020.09.15"]
[EventType "rapid"]
[EventCountry "USA"]
[TimeControl "1500+5"]

1. d4 {[%emt 0:00:05]} Nf6 {[%emt 0:00:05]} 2. c4 {[%emt 0:00:01]} e6 {[%emt 0:00:01]} 3. Nc3 {[%emt 0:00:01]} Bb4 {[%emt 0:00:01]} 4. Qc2 {[%emt 0:00:01]} O-O {[%emt 0:00:02]} 5. Nf3 {[%emt 0:00:01]} d5 {[%emt 0:00:16]} 6. Bg5 {[%emt 0:00:02]} h6 {[%emt 0:00:05]} 7. Bxf6 {[%emt 0:00:01]} Qxf6 {[%emt 0:00:00]} 8. a3 {[%emt 0:00:01]} Bxc3+ {[%emt 0:00:03]} 9. Qxc3 {[%emt 0:00:00]} dxc4 {[%emt 0:00:01]} 10. Qxc4 {[%emt 0:00:00]} Nc6 {[%emt 0:00:03]} 11. Qc3 {[%emt 0:01:27]} Re8 {[%emt 0:00:03]} 12. Rd1 {[%emt 0:00:02]} e5 {[%emt 0:02:11]} 13. d5 {[%emt 0:00:02]} Nb8 {[%emt 0:00:02]} 14. e3 {[%emt 0:00:02]} Bg4 {[%emt 0:00:27]} 15. Be2 {[%emt 0:00:02]} Nd7 {[%emt 0:00:59]} 16. e4 {[%emt 0:00:02]} Qd6 {[%emt 0:01:14]} 17. O-O {[%emt 0:02:12]} Nf6 {[%emt 0:00:04]} 18. Qc4 {[%emt 0:05:21]} Bxf3 {[%emt 0:01:15]} 19. Bxf3 {[%emt 0:00:03]} Rec8 {[%emt 0:00:01]} 20. Qc3 {[%emt 0:00:57]} Rab8 {[%emt 0:01:09]} 21. Rd2 {[%emt 0:01:22]} Rd8 {[%emt 0:04:39]} 22. Rfd1 {[%emt 0:00:30]} Rbc8 {[%emt 0:00:02]} 23. h3 {[%emt 0:00:08]} Qe7 {[%emt 0:00:18]} 24. Qa5 {[%emt 0:00:38]} a6 {[%emt 0:00:18]} 25. Qc3 {[%emt 0:00:35]} c6 {[%emt 0:01:15]} 26. d6 {[%emt 0:04:30]} Qe6 {[%emt 0:00:03]} 27. d7 {[%emt 0:00:44]} Rc7 {[%emt 0:00:28]} 28. Qa5 {[%emt 0:00:01]} Rdxd7 {[%emt 0:00:38]} 29. Rxd7 {[%emt 0:00:02]} Rxd7 {[%emt 0:00:02]} 30. Rxd7 {[%emt 0:00:00]} 1/2-1/2